bitfinex-derivatives/quotes_ETHF0:USTF0_20251229
["timestamp","ask_amount","ask_price","bid_price","bid_amount"]
[1767008083288,0.00353151,2963.8,2962.6,4.43972843]
[1767008083584,0.16886,2964.4,2962.6,4.43972843]
[1767008084374,0.17217753,2964.4,2962.6,4.43972843]
[1767008084580,1.35668877,2964.4,2962.6,4.43972843]
[1767008085780,0.16888,2964.1,2962.5,0.9940529]
[1767008085984,0.16888,2964.1,2962.6,4.654]
[1767008086286,0.16888,2964.1,2962.7,4.653]
[1767008086487,0.16888,2964.1,2962.8,4.653]
[1767008086989,0.16889,2964.0,2962.8,4.653]
[1767008087186,0.16889,2964.0,2962.2,0.99211413]
[1767008087493,0.16889,2964.0,2962.3,4.653]
[1767008098606,0.16889,2964.0,2962.4,4.35712095]
[1767008100402,0.16889,2964.0,2962.5,1.194902]
[1767008100798,0.16889,2964.0,2962.6,4.30038537]
[1767008101902,0.16889,2964.0,2962.7,4.657]
[1767008102105,1.363792,2964.0,2962.8,4.658]
[1767008102299,0.16889,2963.9,2962.8,4.658]
[1767008102499,1.194902,2964.0,2961.8,0.00359628]
[1767008102500,0.16891,2963.5,2961.8,0.00359628]
[1767008102706,1.34664532,2963.5,2962.1,4.658]
[1767008103496,0.16892,2963.4,2962.1,4.658]
[1767008103699,0.16893,2963.3,2962.1,4.658]
[1767008105000,0.16893,2963.2,2962.1,4.658]
[1767008106207,0.16894,2963.1,2962.1,4.658]
[1767008106404,0.16895,2962.9,2961.8,0.00359628]
[1767008106605,1.194902,2962.8,2961.8,0.00359628]
[1767008106904,1.18791817,2963.0,2961.8,0.00359628]
[1767008107607,0.0050585,2962.7,2961.8,0.00359628]
[1767008108507,0.0050585,2962.7,2962.0,0.0050585]
[1767008112210,0.0050585,2962.7,2961.8,0.00359628]
[1767008113208,0.0050585,2962.7,2962.0,0.0050585]
[1767008113813,0.1740185,2962.7,2962.0,0.0050585]
[1767008114016,0.16897,2962.6,2961.8,0.00359628]
[1767008114514,1.3644621,2962.6,2961.8,0.00359628]
[1767008115015,1.3644621,2962.6,2961.9,0.0050585]
[1767008115215,0.16897,2962.5,2961.8,0.00359628]
[1767008116011,1.1954921,2962.6,2961.3,3.229]
[1767008116213,1.3644721,2962.3,2960.8,0.97438186]
[1767008117014,1.3672104,2962.3,2960.8,0.97689756]
[1767008117213,1.3672104,2962.3,2961.3,0.00337239]
[1767008119226,0.1717183,2962.3,2961.3,0.00337239]
[1767008121019,1.36216835,2962.3,2961.3,0.00337239]
[1767008125725,1.36216835,2962.3,2961.4,1.1954921]
[1767008127818,1.36216835,2962.3,2961.3,0.00337239]
[1767008128023,1.36216835,2962.3,2961.3,1.19886449]
[1767008130732,0.0050585,2962.7,2961.9,1.1954921]
[1767008131430,0.0050585,2962.7,2961.6,4.66]
[1767008131635,0.00744435,2962.7,2961.8,1.1954921]
[1767008133032,0.00744435,2962.7,2961.3,0.00337239]
[1767008133238,0.00744435,2962.7,2961.4,4.6184921]
[1767008133937,0.00744435,2962.7,2961.5,4.66]
[1767008139440,0.17640435,2962.7,2961.5,4.66]
[1767008142843,0.17640435,2962.7,2961.7,1.1954921]
[1767008147846,0.17640435,2962.7,2961.6,1.1954921]
[1767008154550,0.17640435,2962.7,2961.5,5.8554921]
[1767008161649,0.16898,2962.4,2961.3,0.00337239]
[1767008161855,1.1954921,2962.3,2961.3,0.00337239]
[1767008162450,0.16899,2962.2,2961.3,0.00337239]
[1767008162655,1.3644921,2962.0,2961.3,0.00337239]
[1767008163151,0.169,2962.0,2961.3,0.00337239]
[1767008163350,0.16901,2961.9,2961.3,0.00337239]
[1767008164244,0.16901,2961.9,2960.8,0.0025157]
[1767008164556,0.16901,2961.9,2960.9,4.663]
[1767008166155,1.16467772,2962.2,2961.1,1.1954921]
[1767008166356,1.34115154,2962.6,2961.7,1.1954921]
[1767008169156,1.34115154,2962.6,2961.6,4.666]
[1767008177667,0.16897,2962.5,2961.6,4.666]
[1767008181880,0.16897,2962.5,2961.0,1.19522964]
[1767008182180,0.16897,2962.5,2961.1,4.665]
[1767008189586,1.17218154,2962.6,2961.4,1.19522964]
[1767008190284,0.16894,2963.0,2961.4,1.19522964]
[1767008190592,0.16894,2963.0,2961.5,4.4873189]
[1767008191278,0.17072966,2963.0,2962.0,0.00505849]
[1767008191483,0.0050585,2962.5,2962.1,4.664]
[1767008194378,0.0050585,2962.5,2962.0,0.00505849]
[1767008196478,0.16891,2963.7,2962.4,1.19522964]
[1767008196780,1.17691881,2964.1,2962.5,4.664]
[1767008196979,1.34579881,2964.1,2962.5,4.664]
[1767008197486,0.0050585,2963.6,2962.5,4.664]
[1767008200286,0.0050585,2963.6,2962.0,0.00505849]
[1767008200584,0.0050585,2963.6,2962.1,4.663]
[1767008202693,0.0050585,2963.6,2962.0,0.00505849]
[1767008202993,0.0050585,2963.6,2962.1,2.761]
[1767008204493,0.16893,2963.3,2962.1,2.761]
[1767008206591,0.16893,2963.2,2962.1,4.662]
[1767008211700,1.3624629,2963.2,2962.1,4.662]
[1767008217305,0.16894,2963.1,2962.1,4.662]
[1767008220704,0.16896,2962.8,2962.0,0.00505849]
[1767008220910,1.1935329,2963.2,2962.0,0.00505849]
[1767008220911,0.16896,2962.7,2962.0,0.00505849]
[1767008227604,1.1935329,2963.2,2962.0,0.00505849]
[1767008228005,0.16896,2962.7,2962.0,0.00505849]
[1767008228205,1.1935329,2963.2,2962.0,0.00505849]
[1767008228420,0.16896,2962.7,2962.0,0.00505849]
[1767008230317,1.1935329,2963.2,2962.0,0.00505849]
[1767008230820,1.3624629,2963.2,2962.0,0.00505849]
[1767008236525,1.3624629,2963.2,2962.3,1.19459027]
[1767008248142,0.0050585,2963.6,2962.6,1.19459027]
[1767008248339,0.0050585,2963.6,2962.9,1.19459027]
[1767008248541,0.0050585,2963.6,2962.9,1.19848151]
[1767008250346,1.19459027,2964.8,2963.6,0.0008]
[1767008250544,1.26680939,2964.6,2963.4,1.19459027]
[1767008250747,0.16885,2964.6,2963.4,1.19459027]
[1767008251046,0.16886,2964.5,2963.4,1.19459027]
[1767008251244,0.0050585,2964.2,2963.7,0.0050585]
[1767008252046,0.0050585,2964.2,2963.1,1.19459027]
[1767008253140,0.0050585,2964.2,2963.4,0.0050585]
[1767008258148,1.19459027,2963.7,2962.9,0.00389124]
[1767008258353,1.19459027,2963.4,2962.2,1.33]
[1767008258743,1.19459027,2963.7,2962.2,2.52459027]
[1767008259145,1.19459027,2963.7,2962.7,0.00505849]
[1767008259442,0.16892,2963.4,2962.7,0.0085059]
[1767008259749,0.00326163,2963.7,2962.7,1.20309617]
[1767008260446,0.00326163,2963.7,2962.7,0.0085059]
[1767008260648,1.19459027,2963.6,2962.7,0.0085059]
[1767008260950,0.00326163,2963.7,2962.7,0.0085059]
[1767008261652,0.16892,2963.4,2962.7,0.0085059]
[1767008272157,0.16892,2963.4,2962.0,1.19459027]
[1767008272362,0.16892,2963.4,2962.3,1.19459027]
[1767008272563,0.16892,2963.4,2962.6,1.19459027]
[1767008273157,0.16892,2963.4,2962.6,1.19843856]
[1767008275762,0.16892,2963.4,2962.6,0.00384829]
[1767008277358,1.19459027,2963.1,2961.7,1.19459027]
[1767008277555,0.0050585,2962.7,2961.7,1.19459027]
[1767008278362,0.0050585,2962.7,2961.7,1.19894893]
[1767008278562,0.0050585,2962.7,2961.7,0.00435866]
[1767008279462,0.16897,2962.6,2961.7,0.00435866]
[1767008281263,0.16897,2962.5,2961.7,0.00435866]
[1767008281465,1.19459027,2962.6,2961.1,4.65]
[1767008282162,1.19459027,2962.6,2961.3,1.19459027]
[1767008282358,40.8050585,2962.7,2961.3,1.19459027]
[1767008282563,0.16898,2962.3,2961.3,1.19778774]
[1767008284161,0.16898,2962.3,2961.3,0.00319747]
[1767008284470,0.16899,2962.2,2960.8,1.19459027]
[1767008285163,0.16899,2962.2,2961.6,1.19459027]
[1767008285360,0.16899,2962.2,2961.6,0.00292586]
[1767008285566,0.16899,2962.2,2961.0,1.19459027]
[1767008285967,0.16899,2962.2,2961.3,1.19459027]
[1767008286567,0.16899,2962.2,2961.3,1.19763766]
[1767008287269,0.16899,2962.2,2961.3,0.00304739]
[1767008287461,0.16899,2962.2,2961.4,1.19459027]
[1767008288269,0.16899,2962.2,2961.3,0.00304739]
[1767008288567,0.16899,2962.2,2961.4,1.19459027]
[1767008290377,0.16899,2962.2,2961.3,0.00304739]
[1767008295575,0.0050585,2962.7,2961.7,1.19459027]
[1767008295775,1.02264039,2963.0,2962.4,1.19459027]
[1767008295968,0.16892,2963.4,2962.7,1.19459027]
[1767008296479,0.16892,2963.4,2962.4,1.19459027]
[1767008296872,0.0050585,2963.2,2962.6,0.0050585]
[1767008298380,0.3374,2963.1,2962.6,0.0050585]
[1767008302981,0.0050585,2963.2,2962.6,0.0050585]
[1767008303182,0.00326163,2963.7,2962.6,0.0050585]
[1767008304071,0.0050585,2963.4,2962.6,0.0050585]
[1767008311286,0.0050585,2963.4,2962.3,4.646]
[1767008312184,0.0050585,2963.4,2962.6,0.0050585]
[1767008332891,1.03698069,2963.7,2962.6,0.0050585]
[1767008333886,0.0050585,2963.4,2962.6,0.0050585]
[1767008334090,1.03698069,2963.7,2962.6,0.0050585]
[1767008335198,0.0050585,2963.4,2962.6,0.0050585]
[1767008343811,1.03698069,2963.7,2962.8,1.19443734]
[1767008344800,0.0050585,2963.5,2962.8,1.19443734]
[1767008345812,0.0050585,2963.5,2962.6,0.0050585]
[1767008346214,0.16892,2963.4,2961.7,6.26766955]
[1767008346417,0.16892,2963.4,2961.8,4.64]
[1767008347117,0.16893,2963.3,2961.8,4.64]
[1767008347318,0.16893,2963.2,2962.3,0.0050585]
[1767008347517,0.16894,2963.1,2961.5,0.9133243]
[1767008347717,0.16894,2963.1,2961.6,4.082]
[1767008348014,0.16894,2963.1,2961.6,5.27643734]
[1767008348518,0.16894,2963.1,2962.1,0.0050585]
[1767008352923,0.16894,2963.1,2961.6,4.082]
[1767008353823,0.16894,2963.1,2962.1,0.0050585]
[1767008355727,0.0050585,2963.5,2961.6,4.368]
[1767008356027,0.95644942,2963.4,2961.6,4.368]
[1767008356227,0.0050585,2963.5,2961.6,4.368]
[1767008357230,0.16895,2962.9,2961.6,4.368]
[1767008358622,0.16895,2962.9,2961.8,1.19443734]
[1767008360625,0.16895,2962.9,2962.1,1.19481475]
[1767008367536,0.16895,2962.9,2962.4,1.19481475]
[1767008367833,0.16895,2962.9,2961.6,4.368]
[1767008368036,0.16895,2962.9,2962.2,1.19481475]
[1767008368339,0.1739685,2963.5,2962.5,1.19481475]
[1767008368531,0.1739685,2963.5,2962.5,5.83381475]
[1767008369735,0.1739685,2963.5,2962.8,1.19481475]
[1767008370329,0.0050585,2963.5,2962.8,1.19481475]
[1767008376940,0.0050585,2963.5,2962.7,1.19481475]
[1767008378341,0.0050585,2963.5,2962.8,1.19481475]
[1767008381835,0.0050585,2963.5,2963.0,1.19481475]
[1767008382949,1.200095,2964.3,2963.4,1.19481475]
[1767008383139,1.200095,2964.3,2963.6,1.19481475]
[1767008383336,0.16887,2964.3,2963.8,1.19481475]
[1767008383937,0.17672895,2964.3,2963.8,1.20223431]
[1767008384138,0.17672895,2964.3,2963.8,0.00741956]
[1767008386141,1.36368475,2964.2,2963.2,4.641]
[1767008386342,0.16888,2964.1,2962.9,4.64]
[1767008386858,0.16889,2964.0,2962.9,4.64]
[1767008387049,0.16889,2963.9,2962.9,4.64]
[1767008387242,0.16889,2963.9,2962.9,4.6429918]
[1767008387446,0.1689,2963.8,2962.9,4.6429918]
[1767008387644,0.1689,2963.7,2962.9,4.0511918]
[1767008388143,1.00390066,2964.1,2961.4,3.55103]
[1767008388144,1.19481475,2963.6,2961.4,3.55103]
[1767008388344,1.19481475,2963.6,2962.0,1.19481475]
[1767008388835,1.19481475,2963.6,2961.7,4.48718857]
[1767008388836,1.19481475,2963.6,2962.3,1.19481475]
[1767008389244,1.19481475,2963.6,2962.3,1.19825319]
[1767008389446,0.16892,2963.4,2962.3,1.19825319]
[1767008396948,0.16892,2963.4,2962.6,1.19481475]
[1767008399151,0.16892,2963.4,2962.3,1.19825319]
[1767008402252,0.16893,2963.3,2962.3,0.00343844]
[1767008409755,1.19481475,2962.8,2961.6,4.639]
[1767008410054,0.0050585,2962.5,2961.6,4.639]
[1767008410859,0.0050585,2962.5,2961.6,4.64181725]
[1767008412852,0.16898,2962.3,2961.6,0.00281725]
[1767008422558,0.98415191,2962.4,2961.6,0.00281725]
[1767008423464,0.16898,2962.3,2961.6,0.00281725]
[1767008430466,0.16898,2962.3,2961.6,1.725e-05]
[1767008432678,0.16899,2962.2,2961.6,1.725e-05]
[1767008432877,0.17285233,2962.2,2961.6,1.725e-05]
[1767008433073,0.17285233,2962.2,2960.6,4.635]
[1767008433679,0.17285233,2962.2,2960.7,1.19546733]
[1767008434078,0.17285233,2962.2,2960.7,1.1981936]
[1767008434980,0.16899,2962.1,2960.7,1.1981936]
[1767008436781,0.16899,2962.1,2961.1,1.19546733]
[1767008437972,0.0050585,2962.5,2961.6,0.0008]
[1767008438572,0.0050585,2962.5,2961.1,1.19546733]
[1767008439077,0.17701079,2962.5,2961.1,1.19546733]
[1767008440077,0.16898,2962.4,2960.7,1.1981936]
[1767008440686,0.16898,2962.4,2961.1,1.19546733]
[1767008440984,0.00804079,2962.5,2961.5,1.19546733]
[1767008441183,0.16895,2962.9,2961.5,1.19546733]
[1767008441776,0.16895,2962.9,2961.1,1.36451733]
[1767008441777,0.16895,2962.9,2961.9,1.19546733]
[1767008441981,0.16891,2963.6,2962.3,1.19546733]
[1767008442183,0.0050585,2963.2,2962.7,0.0050585]
[1767008445487,0.16891,2963.5,2962.7,0.0050585]
[1767008446483,0.0050585,2963.4,2962.7,0.0050585]
[1767008448690,0.16891,2963.5,2962.7,0.0050585]
[1767008448889,0.00245443,2963.6,2962.7,0.0050585]
[1767008448890,6.346,2964.6,2962.9,1.19546733]
[1767008449090,0.16889,2964.0,2962.7,0.0050585]
[1767008449292,0.16889,2964.0,2962.9,1.19546733]
[1767008449691,0.0050585,2963.7,2962.9,1.19546733]
[1767008449892,0.00930099,2963.7,2962.9,1.19844407]
[1767008450496,0.16889,2964.0,2962.9,1.19844407]
[1767008450786,0.16885,2964.6,2962.9,1.19844407]
[1767008451596,0.0050585,2964.0,2962.9,1.19844407]
[1767008452197,0.17139531,2964.6,2963.3,1.19546733]
[1767008454490,0.00254531,2964.6,2963.7,1.19546733]
[1767008454695,40.96881,2965.3,2963.7,1.19546733]
[1767008454897,0.16882,2965.2,2963.3,1.19546733]
[1767008455195,0.16882,2965.2,2963.4,4.40806141]
[1767008455391,0.16882,2965.2,2964.0,0.0050585]
[1767008455889,0.17206702,2965.2,2964.0,0.0050585]
[1767008457989,0.16883,2965.1,2964.0,0.0050585]
[1767008459095,0.00324702,2965.2,2962.9,1.19844407]
[1767008459401,0.16884,2964.8,2963.0,6.73420216]
[1767008460201,0.00505849,2964.2,2963.6,0.0050585]
[1767008460695,0.16884,2964.8,2963.7,1.19546733]
[1767008461702,0.16884,2964.8,2963.6,0.0050585]
[1767008462196,0.16885,2964.7,2963.6,0.0050585]
[1767008470302,0.16885,2964.7,2963.7,1.19546733]
[1767008471603,0.17206702,2965.2,2963.7,1.19546733]
[1767008472401,0.17206702,2965.2,2963.6,0.0050585]
[1767008472602,0.16882,2965.1,2963.6,0.0050585]
[1767008479311,0.16882,2965.1,2963.9,1.19546733]
[1767008479906,0.00324702,2965.2,2964.3,1.19546733]
[1767008480716,0.16879,2965.7,2965.0,1.19248752]
[1767008480912,0.16879,2965.7,2964.7,1.19248752]
[1767008481512,0.17265585,2965.7,2964.7,1.19518209]
[1767008481915,0.17265585,2965.7,2964.9,0.0050585]
[1767008482123,0.0050585,2965.5,2964.9,0.0050585]
[1767008482318,0.00386585,2965.7,2965.3,1.19248752]
[1767008482520,0.16876,2966.2,2965.0,1.19248752]
[1767008482718,0.95665791,2966.1,2965.0,1.19248752]
[1767008482922,0.95665791,2966.0,2965.0,1.19248752]
[1767008483117,0.16877,2966.0,2964.9,0.0050585]
[1767008483419,0.17191613,2966.0,2964.9,0.0050585]
[1767008483621,0.17191613,2966.0,2965.0,1.19248752]
[1767008484619,0.17191613,2966.0,2964.9,0.0050585]
[1767008485818,0.16878,2965.9,2964.7,1.19518209]
[1767008486022,0.16878,2965.9,2964.7,0.00269457]
[1767008486820,0.16878,2965.9,2964.8,1.19248752]
[1767008487020,0.0050585,2965.6,2965.1,0.0050585]
[1767008491229,0.1738585,2965.6,2964.7,0.00269457]
[1767008491431,0.1738585,2965.6,2964.2,5.57048752]
[1767008491933,0.1738585,2965.6,2964.5,1.19248752]
[1767008492335,0.1738585,2965.6,2964.8,0.0050585]
[1767008493629,0.0050585,2965.6,2964.5,0.00347468]
[1767008493831,1.19248752,2965.5,2964.1,1.19248752]
[1767008494042,0.16883,2965.0,2963.7,4.622]
[1767008494333,0.16883,2964.9,2963.7,4.622]
[1767008494736,0.16883,2964.9,2964.0,0.0050585]
[1767008495037,0.16883,2964.9,2964.0,0.00796449]
[1767008498438,0.1688,2965.5,2964.0,0.00796449]
[1767008506547,0.0050585,2965.6,2964.1,6.05260655]
[1767008509946,0.0050585,2965.6,2964.1,7.02166384]
[1767008514957,0.0050585,2965.6,2964.2,4.643]
[1767008515259,0.0050585,2965.6,2964.3,4.3241194]
[1767008516461,0.0050585,2965.6,2965.1,1.19244624]
[1767008516654,0.0050585,2965.6,2965.2,4.646]
[1767008516959,0.17191613,2966.0,2965.2,4.646]
[1767008517760,0.0050585,2965.9,2965.2,4.646]
[1767008521353,0.0050585,2965.9,2965.2,4.4488]
[1767008521555,0.0050585,2965.9,2965.2,4.153]
[1767008522462,0.0050585,2965.9,2964.9,1.19244624]
[1767008522657,0.0050585,2965.9,2965.0,4.647]
[1767008522862,0.16878,2965.8,2965.0,4.647]
[1767008527463,1.19244624,2965.5,2964.0,0.00796449]
[1767008527660,0.16883,2965.0,2964.0,1.27796449]
[1767008527860,0.16883,2965.0,2964.1,1.19244624]
[1767008529656,0.16883,2965.0,2964.0,2.47041073]
[1767008537781,0.16883,2965.0,2964.3,1.19244624]
[1767008539374,0.16879,2965.6,2964.6,1.19244624]
[1767008541374,0.16879,2965.6,2964.4,1.19244624]
[1767008542575,0.16879,2965.6,2964.0,2.47084985]
[1767008544267,5.54204613,2967.3,2964.1,7.81482755]
[1767008544469,0.16867,2967.8,2966.0,1.19288536]
[1767008544672,42.26242388,2968.4,2965.5,3.382]
[1767008544977,0.1687,2967.3,2966.1,4.41832545]
[1767008545161,0.16873,2966.7,2965.6,4.41832545]
[1767008545361,0.9509554,2966.6,2963.5,0.16891]
[1767008545569,0.16877,2966.1,2963.6,4.646]
[1767008545776,5.20333522,2967.3,2964.1,4.43204832]
[1767008545777,0.16877,2966.0,2964.1,4.43204832]
[1767008545966,0.16877,2966.0,2964.2,4.646]
[1767008546162,0.16877,2966.0,2964.2,4.64925272]
[1767008546366,0.0050585,2965.4,2964.8,0.0050585]
[1767008546974,0.16877,2966.0,2964.8,0.0050585]
[1767008547977,0.0050585,2965.7,2964.8,0.0050585]
[1767008558175,0.0050585,2965.7,2964.8,4.6490585]
[1767008558376,0.0050585,2965.7,2964.8,0.0050585]
[1767008569487,0.1688,2965.6,2964.8,0.0050585]
[1767008569782,0.16881,2965.4,2964.7,0.4536]
[1767008569979,0.16881,2965.3,2964.2,0.00325272]
[1767008570578,0.16881,2965.3,2964.5,0.0050585]
[1767008571485,0.16882,2965.2,2964.5,0.0050585]
[1767008571686,0.17238418,2965.2,2964.2,0.00325272]
[1767008572687,0.17238418,2965.2,2964.4,0.0050585]
[1767008573693,0.00356418,2965.2,2964.4,0.0050585]
[1767008584510,0.16877,2966.1,2964.6,1.19292898]
[1767008584916,0.16877,2966.1,2964.7,4.639]
[1767008585415,0.0050585,2965.7,2964.7,4.639]
[1767008586211,0.0050585,2965.7,2964.4,0.0050585]
[1767008586409,0.0050585,2965.7,2964.4,4.6450585]
[1767008587419,0.1738485,2965.7,2964.4,4.6450585]
[1767008591818,0.16879,2965.6,2964.4,4.6450585]
[1767008598527,0.16879,2965.6,2964.4,5.0000585]
[1767008604530,0.16879,2965.6,2964.5,0.355]
[1767008608439,0.16879,2965.6,2964.9,1.19263053]
[1767008619442,0.16879,2965.6,2965.0,1.19263053]
[1767008625259,0.10949,2965.6,2965.0,1.19263053]
[1767008631765,0.10949,2965.6,2964.7,4.634]
[1767008631965,0.10949,2965.6,2965.0,1.19263053]
[1767008638561,0.10949,2965.6,2965.1,4.635]
[1767008638969,0.0050585,2965.7,2965.1,4.635]
[1767008640061,0.17309865,2966.1,2965.3,1.19263053]
[1767008641160,0.0050585,2966.0,2965.3,1.19263053]
[1767008641464,1.19263053,2965.8,2964.6,0.355]
[1767008641668,0.16882,2965.3,2964.4,0.0050585]
[1767008641868,0.16882,2965.3,2964.4,4.6400585]
[1767008642568,0.16882,2965.3,2964.5,4.635]
[1767008643661,0.16882,2965.2,2964.5,4.635]
[1767008644667,0.16882,2965.2,2964.4,0.0050585]
[1767008644863,0.16882,2965.2,2964.4,4.6400585]
[1767008647469,0.16882,2965.2,2964.4,5.83268903]
[1767008648264,0.16882,2965.2,2964.4,1.19768903]
[1767008648470,0.16882,2965.2,2964.4,5.83368903]
[1767008652474,0.16882,2965.2,2964.7,1.19263053]
[1767008659078,0.16882,2965.2,2964.4,4.6410585]
[1767008662083,0.16882,2965.2,2964.6,1.19263053]
[1767008664383,0.1688,2965.6,2964.6,1.19263053]
[1767008664583,0.1688,2965.6,2964.6,4.644]
[1767008664781,0.1688,2965.5,2964.6,4.644]
[1767008667379,0.16881,2965.4,2964.6,4.644]
[1767008675897,0.16881,2965.4,2964.4,0.0050585]
[1767008676097,0.16881,2965.4,2964.5,4.642]
[1767008676798,0.16881,2965.3,2964.6,4.642]
[1767008677397,0.16882,2965.2,2964.6,4.642]
[1767008677696,0.16882,2965.1,2964.4,0.0050585]
[1767008677902,0.16882,2965.1,2964.4,4.6470585]
[1767008682501,0.16882,2965.1,2964.4,0.0050585]
[1767008682696,6.453,2965.7,2964.2,0.00325272]
[1767008682896,0.95231727,2965.6,2964.2,0.00325272]
[1767008683102,41.75231727,2965.5,2964.2,0.00325272]
[1767008683301,0.95231727,2965.4,2964.2,0.00325272]
[1767008683602,0.95231727,2965.4,2964.5,0.0050585]
[1767008683806,0.95243542,2965.3,2964.5,0.0050585]
[1767008684001,40.8,2965.5,2964.5,0.0050585]
[1767008684192,0.95243882,2965.4,2964.5,0.0050585]
[1767008684396,0.16884,2964.9,2964.5,0.0050585]
[1767008689005,0.16884,2964.9,2964.2,0.00325272]
[1767008690006,0.16884,2964.9,2964.3,0.0050585]
[1767008706126,0.16884,2964.9,2964.2,0.00325272]
[1767008707125,0.16884,2964.9,2964.3,0.0050585]
[1767008709027,0.16886,2964.4,2963.5,0.355]
[1767008709231,0.16886,2964.4,2963.6,4.67]
[1767008709724,0.16888,2964.1,2963.1,0.355]
[1767008709927,0.0050585,2963.9,2963.3,0.0050585]
[1767008710120,0.00766016,2963.9,2963.3,0.0050585]
[1767008710930,0.16888,2964.1,2963.3,0.0050585]
[1767008711432,6.641,2964.9,2963.3,0.0050585]
[1767008711731,0.95255618,2964.8,2963.3,0.0050585]
[1767008711925,0.0050585,2964.3,2963.3,0.0050585]
[1767008712127,0.0050585,2964.3,2963.5,1.19283459]
[1767008712327,0.00356704,2964.8,2963.5,1.19283459]
[1767008713230,0.0050585,2964.4,2963.5,1.19283459]
[1767008713435,0.16886,2964.5,2963.5,1.19283459]
[1767008713727,0.00356704,2964.8,2963.5,1.19283459]
[1767008713930,0.16886,2964.5,2963.5,1.19283459]
[1767008714128,0.00356704,2964.8,2963.5,1.19283459]
[1767008714428,0.16882,2965.1,2963.9,1.19283459]
[1767008714634,0.16882,2965.1,2964.0,4.671]
[1767008715333,0.0050585,2964.8,2964.0,4.671]
[1767008715631,0.0050585,2964.8,2964.1,4.671]
[1767008721644,0.17291015,2965.1,2964.1,4.671]
[1767008724639,0.17291015,2965.1,2964.5,1.19298995]
[1767008725347,1.19298995,2966.0,2964.5,1.19298995]
[1767008725545,0.16881,2965.4,2965.0,0.0050585]
[1767008726045,0.16881,2965.4,2964.5,1.19298995]
[1767008726346,0.17133258,2965.4,2964.5,1.19298995]
[1767008726750,0.16881,2965.3,2964.5,1.19298995]
[1767008727048,0.0050585,2965.2,2964.6,0.0050585]
[1767008731751,0.0050585,2965.2,2964.8,1.19298995]
[1767008732052,0.16881,2965.3,2964.8,1.19298995]
[1767008732750,0.16881,2965.3,2964.8,1.18127191]
[1767008738557,0.16881,2965.3,2964.6,0.0050585]
[1767008760775,40.8,2966.1,2965.1,1.19298995]
[1767008760967,0.16879,2965.7,2965.1,1.19298995]
[1767008761170,6.634,2966.4,2965.1,1.19298995]
[1767008761372,41.75145545,2966.3,2965.1,1.19298995]
[1767008761572,0.95145545,2966.2,2965.1,1.19298995]
[1767008762479,0.1688,2965.6,2965.1,1.19298995]
[1767008763965,40.8,2966.3,2963.9,1.18497334]
[1767008763966,0.16881,2965.3,2963.9,1.18497334]
[1767008764171,1.19298995,2965.5,2964.0,1.19298995]
[1767008765069,0.0050585,2965.0,2964.5,0.0050585]
[1767008765473,0.0050585,2965.0,2964.5,3e-08]
[1767008768277,0.1738885,2965.0,2964.5,3e-08]
[1767008783499,0.16883,2964.9,2964.5,3e-08]
[1767008816126,0.0050585,2965.0,2964.5,3e-08]
[1767008816424,1.21282933,2966.1,2964.5,3e-08]
[1767008816624,0.16881,2965.3,2964.5,3e-08]
[1767008817223,0.00505847,2965.2,2964.5,3e-08]
[1767008822530,0.16883,2965.1,2964.5,3e-08]
[1767008830734,0.00505847,2965.2,2964.0,0.1112]
[1767008831041,0.16887,2964.3,2963.1,0.00334376]
[1767008831238,0.16887,2964.3,2963.1,2.79834376]
[1767008831734,0.16887,2964.3,2963.4,0.0050585]
[1767008833228,40.8,2965.1,2963.4,0.0050585]
[1767008833434,0.9484166,2965.0,2963.4,0.0050585]
[1767008833633,0.16888,2964.2,2963.4,0.0050585]
[1767008836954,1.19338379,2964.4,2961.8,0.16901]
[1767008837134,1.19338379,2964.4,2962.0,2.3381583]
[1767008837334,1.19338379,2964.4,2962.1,4.654]
[1767008837836,0.0050585,2963.5,2963.0,0.0050585]
[1767008838043,0.00751931,2963.5,2963.0,0.00817474]
[1767008839042,0.00751931,2963.5,2962.1,4.654]
[1767008839643,0.00751931,2963.5,2962.4,1.19338379]
[1767008840051,0.00751931,2963.5,2962.7,0.0050585]
[1767008842349,0.16891,2963.7,2962.7,0.0050585]
[1767008843548,0.0050585,2963.5,2962.7,0.0050585]
[1767008845653,0.17290919,2963.7,2962.7,0.0050585]
[1767008846447,41.99338379,2965.1,2962.7,0.0050585]
[1767008846448,0.16887,2964.3,2963.2,1.19338379]
[1767008846748,0.0050585,2964.0,2963.2,1.19338379]
[1767008846947,0.16887,2964.3,2963.2,1.19338379]
[1767008848757,0.16887,2964.3,2963.6,1.19370374]
[1767008852749,0.16887,2964.2,2963.6,1.19370374]
[1767008852949,0.16883,2965.0,2963.6,1.19370374]
[1767008853150,1.19370374,2964.8,2963.3,1.19370374]
[1767008854560,0.16888,2964.1,2963.3,1.19370374]
[1767008855951,0.16888,2964.1,2963.2,1.19370374]
[1767008856559,0.16888,2964.1,2963.1,1.19370374]
[1767008857356,0.16889,2964.0,2963.1,1.19370374]
[1767008863453,0.16889,2964.0,2963.4,1.19370374]
[1767008863661,47.537,2965.1,2963.7,1.19370374]
[1767008863859,0.95224275,2965.0,2963.7,1.19370374]
[1767008864060,0.95224275,2964.9,2963.7,1.19370374]
[1767008864258,0.95224275,2964.8,2963.7,1.19370374]
[1767008864459,0.16887,2964.3,2963.7,1.19370374]
[1767008864855,0.16887,2964.3,2963.6,1.19370374]
[1767008867456,0.16887,2964.2,2963.6,1.19370374]
[1767008872970,0.10977,2964.2,2963.6,1.19370374]
[1767008873970,0.10977,2964.2,2963.3,1.19370374]
[1767008874270,0.16888,2964.1,2963.3,1.19370374]
[1767008880187,0.16889,2964.0,2963.3,1.19370374]
[1767008882192,0.16891,2963.7,2962.9,0.355]
[1767008882396,0.16891,2963.7,2962.8,1.54870374]
[1767008883496,0.16891,2963.7,2963.1,1.19370374]
[1767008886397,0.16891,2963.7,2962.8,1.54870374]
[1767008886997,0.16892,2963.4,2962.7,0.0050585]
[1767008891197,1.21282933,2964.6,2963.1,1.19370374]
[1767008891395,0.16889,2964.0,2963.4,1.19370374]
[1767008892297,40.8,2964.7,2963.4,1.19370374]
[1767008892606,0.16889,2964.0,2963.4,1.19370374]
[1767008894301,0.16889,2964.0,2963.1,1.19370374]
[1767008896807,0.16889,2964.0,2963.4,1.19370374]
[1767008897606,0.16889,2964.0,2963.1,1.19370374]
[1767008900510,0.16889,2963.9,2963.1,1.19370374]